[Event "*** MasterClass Titled Tuesday Blitz"]
[Site "Chess.com"]
[Date "2017.07.04"]
[Round "9"]
[White "TregubovP"]
[Black "Gabrielian_Artur"]
[Result "1/2-1/2"]
[WhiteElo "2441"]
[BlackElo "2568"]
[TimeControl "180+2"]
[EndTime "15:06:35 PDT"]
[Termination "Game drawn by repetition"]

1. d4 {[%clk 0:02:57.8]} 1... Nf6 {[%clk 0:03:00.8]} 2. c4 {[%clk 0:02:57.7]}
2... c5 {[%clk 0:03:02]} 3. d5 {[%clk 0:02:49.4]} 3... e6 {[%clk 0:03:02.8]} 4.
Nc3 {[%clk 0:02:49.6]} 4... exd5 {[%clk 0:03:04]} 5. cxd5 {[%clk 0:02:51.3]}
5... d6 {[%clk 0:03:05.2]} 6. Nf3 {[%clk 0:02:51.6]} 6... g6 {[%clk 0:03:06.6]}
7. Bf4 {[%clk 0:02:53.1]} 7... Bg7 {[%clk 0:03:06]} 8. h3 {[%clk 0:02:54.6]}
8... O-O {[%clk 0:03:05.6]} 9. e3 {[%clk 0:02:56]} 9... Re8 {[%clk 0:02:59.9]}
10. Nd2 {[%clk 0:02:54.5]} 10... Nbd7 {[%clk 0:02:53.9]} 11. Nc4 {[%clk
0:02:45.7]} 11... Ne4 {[%clk 0:02:33.2]} 12. Nxe4 {[%clk 0:02:42.1]} 12... Rxe4
{[%clk 0:02:33.8]} 13. Bd3 {[%clk 0:02:40.3]} 13... Rxf4 {[%clk 0:02:29.5]} 14.
exf4 {[%clk 0:02:40.7]} 14... b5 {[%clk 0:02:30.8]} 15. Ne3 {[%clk 0:02:31.2]}
15... Bxb2 {[%clk 0:02:30.7]} 16. O-O {[%clk 0:02:32.2]} 16... Bxa1 {[%clk
0:02:30.1]} 17. Qxa1 {[%clk 0:02:32.2]} 17... c4 {[%clk 0:02:20.9]} 18. Be2
{[%clk 0:02:33.2]} 18... Qf6 {[%clk 0:02:12.3]} 19. a4 {[%clk 0:02:29.9]} 19...
Qxa1 {[%clk 0:01:23.5]} 20. Rxa1 {[%clk 0:02:30.2]} 20... Ba6 {[%clk 0:01:21.3]}
21. axb5 {[%clk 0:02:28.7]} 21... Bxb5 {[%clk 0:01:22.3]} 22. Bxc4 {[%clk
0:02:30.3]} 22... Bxc4 {[%clk 0:01:18.9]} 23. Nxc4 {[%clk 0:02:31.2]} 23... Nf6
{[%clk 0:01:20.1]} 24. Ra5 {[%clk 0:02:26.3]} 24... Rc8 {[%clk 0:01:11.3]} 25.
Nxd6 {[%clk 0:02:10]} 25... Rd8 {[%clk 0:01:06.3]} 26. Nc4 {[%clk 0:01:53.4]}
26... Rxd5 {[%clk 0:00:57.5]} 27. Rxa7 {[%clk 0:01:51.8]} 27... Rd1+ {[%clk
0:00:55.9]} 28. Kh2 {[%clk 0:01:51.4]} 28... Rd4 {[%clk 0:00:56.9]} 29. Ne5
{[%clk 0:01:50.5]} 29... Rxf4 {[%clk 0:00:57]} 30. Nxf7 {[%clk 0:01:37.8]} 30...
Rxf2 {[%clk 0:00:56.7]} 31. Nh6+ {[%clk 0:01:35.2]} 31... Kh8 {[%clk 0:00:57]}
32. Rf7 {[%clk 0:01:33.3]} 32... Ne4 {[%clk 0:00:50.9]} 33. Re7 {[%clk
0:01:31.5]} 33... Nf6 {[%clk 0:00:43.3]} 34. Kg1 {[%clk 0:01:27.4]} 34... Ra2
{[%clk 0:00:39.8]} 35. g4 {[%clk 0:01:27.9]} 35... Ra8 {[%clk 0:00:37.5]} 36. g5
{[%clk 0:01:27.3]} 36... Ng8 {[%clk 0:00:30.7]} 37. Nf7+ {[%clk 0:01:23.5]}
37... Kg7 {[%clk 0:00:31.8]} 38. Rb7 {[%clk 0:01:24.3]} 38... Kf8 {[%clk
0:00:30.1]} 39. Ne5 {[%clk 0:01:15.7]} 39... Ne7 {[%clk 0:00:26.8]} 40. Nd7+
{[%clk 0:01:16.6]} 40... Kf7 {[%clk 0:00:25.9]} 41. Nf6 {[%clk 0:01:17.5]} 41...
h5 {[%clk 0:00:22.8]} 42. Nd5 {[%clk 0:01:09.2]} 42... Re8 {[%clk 0:00:23]} 43.
Kg2 {[%clk 0:01:06.4]} 43... Kf8 {[%clk 0:00:22.8]} 44. Nf4 {[%clk 0:00:59.2]}
44... Ra8 {[%clk 0:00:21.3]} 45. Kf3 {[%clk 0:00:53.1]} 45... Ra3+ {[%clk
0:00:21.9]} 46. Ke4 {[%clk 0:00:53.2]} 46... Ra4+ {[%clk 0:00:22.9]} 47. Kf3
{[%clk 0:00:49.5]} 47... Ra3+ {[%clk 0:00:23.9]} 48. Ke4 {[%clk 0:00:50.1]}
48... Ra4+ {[%clk 0:00:25.1]} 49. Kf3 {[%clk 0:00:48]} 49... Ra3+ {[%clk
0:00:26.3]} 50. Ke4 {[%clk 0:00:49]} 50... Ra4+ {[%clk 0:00:27.5]} 1/2-1/2

[Event "*** MasterClass Titled Tuesday Blitz"]
[Site "Chess.com"]
[Date "2017.07.04"]
[Round "9"]
[White "Muisback26"]
[Black "OparinGrigoriy"]
[Result "1/2-1/2"]
[WhiteElo "2602"]
[BlackElo "2747"]
[TimeControl "180+2"]
[EndTime "15:07:10 PDT"]
[Termination "Game drawn by repetition"]

1. e4 {[%clk 0:03:00.2]} 1... c5 {[%clk 0:02:55.3]} 2. Nf3 {[%clk 0:02:57.1]}
2... Nc6 {[%clk 0:02:55.1]} 3. Bb5 {[%clk 0:02:53.3]} 3... d6 {[%clk 0:02:55.5]}
4. O-O {[%clk 0:02:52.8]} 4... Bd7 {[%clk 0:02:55.6]} 5. Re1 {[%clk 0:02:52.7]}
5... Nf6 {[%clk 0:02:54.2]} 6. c3 {[%clk 0:02:52.5]} 6... a6 {[%clk 0:02:54.4]}
7. Bc4 {[%clk 0:02:53.4]} 7... Bg4 {[%clk 0:02:49.9]} 8. d4 {[%clk 0:02:53]}
8... cxd4 {[%clk 0:02:50.2]} 9. cxd4 {[%clk 0:02:54.9]} 9... Rc8 {[%clk
0:02:50.5]} 10. Be2 {[%clk 0:02:25.8]} 10... e5 {[%clk 0:02:31.6]} 11. d5 {[%clk
0:02:21.6]} 11... Bxf3 {[%clk 0:02:31.9]} 12. Bxf3 {[%clk 0:02:20.8]} 12... Nd4
{[%clk 0:02:33.6]} 13. Nc3 {[%clk 0:02:21.7]} 13... Be7 {[%clk 0:02:33]} 14. Be3
{[%clk 0:02:20.8]} 14... Nxf3+ {[%clk 0:02:32.7]} 15. Qxf3 {[%clk 0:02:22.7]}
15... O-O {[%clk 0:02:33.9]} 16. h3 {[%clk 0:02:20.6]} 16... Nd7 {[%clk
0:02:29.1]} 17. Rec1 {[%clk 0:02:05.1]} 17... Bg5 {[%clk 0:02:28]} 18. Ne2
{[%clk 0:02:05.4]} 18... Bxe3 {[%clk 0:02:26.4]} 19. Qxe3 {[%clk 0:02:07.3]}
19... Qa5 {[%clk 0:02:25.9]} 20. a3 {[%clk 0:02:05.7]} 20... Qb6 {[%clk
0:02:07.3]} 21. Qxb6 {[%clk 0:01:49.1]} 21... Nxb6 {[%clk 0:02:09.2]} 22. b3
{[%clk 0:01:50.3]} 22... Nd7 {[%clk 0:01:53.7]} 23. f3 {[%clk 0:01:46.7]} 23...
g6 {[%clk 0:01:46.9]} 24. Kf2 {[%clk 0:01:40.9]} 24... f5 {[%clk 0:01:47.6]} 25.
Ke3 {[%clk 0:01:40.3]} 25... Kf7 {[%clk 0:01:47.6]} 26. Rxc8 {[%clk 0:01:14.6]}
26... Rxc8 {[%clk 0:01:47.7]} 27. Rc1 {[%clk 0:01:16.5]} 27... Rxc1 {[%clk
0:01:34.8]} 28. Nxc1 {[%clk 0:01:18.4]} 28... Nc5 {[%clk 0:01:32.8]} 29. b4
{[%clk 0:01:17.2]} 29... Na4 {[%clk 0:01:28.5]} 30. Nb3 {[%clk 0:01:13.6]} 30...
b6 {[%clk 0:01:25.3]} 31. Nd2 {[%clk 0:00:37.3]} 31... Nb2 {[%clk 0:01:25.1]}
32. exf5 {[%clk 0:00:35.1]} 32... gxf5 {[%clk 0:01:25.3]} 33. g4 {[%clk
0:00:36.6]} 33... Kf6 {[%clk 0:01:13.4]} 34. gxf5 {[%clk 0:00:20.5]} 34... Kxf5
{[%clk 0:01:13.5]} 35. Ne4 {[%clk 0:00:21.4]} 35... Nc4+ {[%clk 0:01:13.6]} 36.
Kd3 {[%clk 0:00:22]} 36... b5 {[%clk 0:01:15.2]} 37. a4 {[%clk 0:00:22.9]} 37...
Kf4 {[%clk 0:01:14.2]} 38. axb5 {[%clk 0:00:23.9]} 38... axb5 {[%clk 0:01:14.9]}
39. Nc3 {[%clk 0:00:25.8]} 39... Nb6 {[%clk 0:00:41.4]} 40. Ke2 {[%clk
0:00:25.9]} 40... h5 {[%clk 0:00:36.1]} 41. Kf2 {[%clk 0:00:24.2]} 41... h4
{[%clk 0:00:37.1]} 42. Ne2+ {[%clk 0:00:22.6]} 42... Kf5 {[%clk 0:00:35.2]} 43.
Nc3 {[%clk 0:00:24.5]} 43... Kf4 {[%clk 0:00:35]} 44. Ne2+ {[%clk 0:00:21.5]}
44... Kg5 {[%clk 0:00:33.5]} 45. Nc3 {[%clk 0:00:22.4]} 45... Kf4 {[%clk
0:00:31.4]} 46. Ne2+ {[%clk 0:00:19.7]} 1/2-1/2

[Event "*** MasterClass Titled Tuesday Blitz"]
[Site "Chess.com"]
[Date "2017.07.04"]
[Round "9"]
[White "FearlessKing64"]
[Black "charlescandycampbell"]
[Result "1-0"]
[WhiteElo "2189"]
[BlackElo "2110"]
[TimeControl "180+2"]
[EndTime "15:07:25 PDT"]
[Termination "FearlessKing64 won by resignation"]

1. e4 {[%clk 0:03:01.9]} 1... c6 {[%clk 0:03:01.1]} 2. d4 {[%clk 0:03:02.3]}
2... d5 {[%clk 0:03:03]} 3. exd5 {[%clk 0:03:04.1]} 3... cxd5 {[%clk 0:03:04]}
4. c4 {[%clk 0:03:05.8]} 4... Nf6 {[%clk 0:03:04.8]} 5. Nc3 {[%clk 0:03:07.4]}
5... g6 {[%clk 0:03:06.1]} 6. cxd5 {[%clk 0:03:07.4]} 6... Bg7 {[%clk 0:03:07]}
7. Bb5+ {[%clk 0:03:07.7]} 7... Nbd7 {[%clk 0:03:06.9]} 8. d6 {[%clk 0:03:09.1]}
8... exd6 {[%clk 0:03:07.2]} 9. Qe2+ {[%clk 0:03:09.7]} 9... Qe7 {[%clk
0:03:05.6]} 10. Bf4 {[%clk 0:03:11.1]} 10... Qxe2+ {[%clk 0:03:00.6]} 11. Bxe2
{[%clk 0:03:09.8]} 11... d5 {[%clk 0:02:57.9]} 12. Bf3 {[%clk 0:03:04.8]} 12...
Nb6 {[%clk 0:02:47.7]} 13. Bc7 {[%clk 0:03:04.9]} 13... O-O {[%clk 0:02:40.4]}
14. Bxb6 {[%clk 0:03:05]} 14... axb6 {[%clk 0:02:40.7]} 15. Nge2 {[%clk
0:02:56.8]} 15... Re8 {[%clk 0:02:35.3]} 16. O-O {[%clk 0:02:52]} 16... Bg4
{[%clk 0:02:29.4]} 17. Bxg4 {[%clk 0:02:39.1]} 17... Nxg4 {[%clk 0:02:29.3]} 18.
Rfd1 {[%clk 0:02:39.8]} 18... Nf6 {[%clk 0:02:27.6]} 19. Nf4 {[%clk 0:02:36.3]}
19... Rad8 {[%clk 0:02:26.3]} 20. a4 {[%clk 0:02:22.8]} 20... g5 {[%clk
0:02:11.3]} 21. Nfe2 {[%clk 0:02:11]} 21... Ne4 {[%clk 0:02:08.3]} 22. Ra3
{[%clk 0:02:02.8]} 22... Nd6 {[%clk 0:02:01.2]} 23. Rb3 {[%clk 0:01:46.8]} 23...
Nc4 {[%clk 0:02:00.1]} 24. Kf1 {[%clk 0:01:43.6]} 24... Re6 {[%clk 0:01:49.2]}
25. Rb4 {[%clk 0:01:36.9]} 25... Rc6 {[%clk 0:01:41.5]} 26. g4 {[%clk 0:01:18]}
26... Bf8 {[%clk 0:01:33.7]} 27. Rb5 {[%clk 0:01:18.6]} 27... Rcd6 {[%clk
0:01:17]} 28. Ng3 {[%clk 0:01:19.6]} 28... Rf6 {[%clk 0:00:53.7]} 29. Nf5 {[%clk
0:01:16.7]} 29... h5 {[%clk 0:00:46.3]} 30. h3 {[%clk 0:01:08.3]} 30... hxg4
{[%clk 0:00:46.5]} 31. hxg4 {[%clk 0:01:10.2]} 31... Kh7 {[%clk 0:00:16.9]} 32.
Nxd5 {[%clk 0:01:01.4]} 32... Re6 {[%clk 0:00:17.8]} 33. Nde3 {[%clk 0:01:02.9]}
33... Nxe3+ {[%clk 0:00:17.3]} 34. fxe3 {[%clk 0:01:03.9]} 34... Kg6 {[%clk
0:00:17.9]} 35. Ke2 {[%clk 0:01:01.2]} 35... Re4 {[%clk 0:00:18.4]} 36. Kf3
{[%clk 0:00:57.9]} 36... Rde8 {[%clk 0:00:18.9]} 37. Rxb6+ {[%clk 0:00:56.3]}
37... f6 {[%clk 0:00:20.1]} 38. Rd3 {[%clk 0:00:45.3]} 38... R8e7 {[%clk
0:00:16]} 39. Rdb3 {[%clk 0:00:45.5]} 39... Re8 {[%clk 0:00:15.7]} 40. Rxb7
{[%clk 0:00:46.8]} 40... R4e6 {[%clk 0:00:15.6]} 41. Rb8 {[%clk 0:00:46.6]}
41... Rxb8 {[%clk 0:00:12.9]} 42. Rxb8 {[%clk 0:00:48.5]} 42... Kf7 {[%clk
0:00:14.1]} 43. b4 {[%clk 0:00:46]} 43... Ra6 {[%clk 0:00:13.2]} 44. a5 {[%clk
0:00:47.3]} 44... Bd6 {[%clk 0:00:07.6]} 45. Rb7+ {[%clk 0:00:44]} 45... Ke6
{[%clk 0:00:07.7]} 46. Nxd6 {[%clk 0:00:43.8]} 46... Kxd6 {[%clk 0:00:07]} 47.
Rb6+ {[%clk 0:00:45.3]} 47... Rxb6 {[%clk 0:00:08.2]} 48. axb6 {[%clk
0:00:47.2]} 48... Kc6 {[%clk 0:00:10]} 49. Ke4 {[%clk 0:00:48.7]} 49... Kxb6
{[%clk 0:00:11.2]} 50. Kf5 {[%clk 0:00:50.3]} 50... Kb5 {[%clk 0:00:12.4]} 51.
Kxf6 {[%clk 0:00:51.8]} 51... Kxb4 {[%clk 0:00:14.3]} 52. Kxg5 {[%clk
0:00:53.7]} 52... Kc4 {[%clk 0:00:15.1]} 53. Kf4 {[%clk 0:00:55.6]} 53... Kd5
{[%clk 0:00:16.2]} 54. g5 {[%clk 0:00:57]} 54... Ke6 {[%clk 0:00:17.3]} 55. e4
{[%clk 0:00:58.6]} 55... Kf7 {[%clk 0:00:17.6]} 56. Kf5 {[%clk 0:01:00]} 56...
Ke7 {[%clk 0:00:19.4]} 57. d5 {[%clk 0:01:00.5]} 57... Kf8 {[%clk 0:00:21.3]}
58. e5 {[%clk 0:01:01.5]} 58... Kf7 {[%clk 0:00:23.2]} 59. g6+ {[%clk
0:01:02.6]} 59... Ke7 {[%clk 0:00:24.3]} 60. e6 {[%clk 0:01:01.8]} 60... Kf8
{[%clk 0:00:25.2]} 61. Ke5 {[%clk 0:01:01.2]} 61... Kg7 {[%clk 0:00:25.8]} 62.
e7 {[%clk 0:01:00.1]} 62... Kxg6 {[%clk 0:00:27]} 63. e8=Q+ {[%clk 0:01:01.5]}
63... Kg5 {[%clk 0:00:28.9]} 64. Qf7 {[%clk 0:01:01.5]} 64... Kg4 {[%clk
0:00:29.7]} 65. d6 {[%clk 0:01:02.8]} 65... Kg3 {[%clk 0:00:30.5]} 66. d7 {[%clk
0:01:04.2]} 66... Kg2 {[%clk 0:00:31.6]} 67. d8=Q {[%clk 0:01:05.6]} 1-0

[Event "*** MasterClass Titled Tuesday Blitz"]
[Site "Chess.com"]
[Date "2017.07.04"]
[Round "9"]
[White "stuffings101"]
[Black "Me_ch_an"]
[Result "1-0"]
[WhiteElo "2199"]
[BlackElo "2235"]
[TimeControl "180+2"]
[EndTime "15:07:31 PDT"]
[Termination "stuffings101 won on time"]

1. e4 {[%clk 0:03:01.9]} 1... c5 {[%clk 0:03:00.5]} 2. Nf3 {[%clk 0:02:46.2]}
2... e6 {[%clk 0:03:00.4]} 3. d3 {[%clk 0:02:46.6]} 3... d5 {[%clk 0:02:57.9]}
4. Nbd2 {[%clk 0:02:46.1]} 4... Nf6 {[%clk 0:02:58.3]} 5. g3 {[%clk 0:02:46.3]}
5... Nc6 {[%clk 0:02:59.1]} 6. Bg2 {[%clk 0:02:46.7]} 6... Bd6 {[%clk
0:02:51.7]} 7. O-O {[%clk 0:02:47.7]} 7... d4 {[%clk 0:02:47.6]} 8. Nc4 {[%clk
0:02:46.1]} 8... e5 {[%clk 0:02:48.8]} 9. a4 {[%clk 0:02:44.7]} 9... Bg4 {[%clk
0:02:47.6]} 10. h3 {[%clk 0:02:44.5]} 10... Bxf3 {[%clk 0:02:45.8]} 11. Qxf3
{[%clk 0:02:42.4]} 11... O-O {[%clk 0:02:31.7]} 12. h4 {[%clk 0:02:42.2]} 12...
a6 {[%clk 0:02:30.9]} 13. a5 {[%clk 0:02:39.7]} 13... h6 {[%clk 0:02:22.4]} 14.
Bh3 {[%clk 0:02:35.3]} 14... Bc7 {[%clk 0:02:17.2]} 15. Bd2 {[%clk 0:02:33.2]}
15... Ne8 {[%clk 0:01:31.3]} 16. Qg4 {[%clk 0:02:19.6]} 16... Kh8 {[%clk
0:01:29.2]} 17. f4 {[%clk 0:01:57]} 17... Nd6 {[%clk 0:01:13.7]} 18. Nxe5 {[%clk
0:01:53]} 18... Nxa5 {[%clk 0:00:53.1]} 19. b3 {[%clk 0:01:43.4]} 19... Nc6
{[%clk 0:00:52.6]} 20. Nxc6 {[%clk 0:01:18.2]} 20... bxc6 {[%clk 0:00:54.5]} 21.
e5 {[%clk 0:01:16.1]} 21... Nc8 {[%clk 0:00:52.5]} 22. Qh5 {[%clk 0:01:08.1]}
22... Ne7 {[%clk 0:00:46.8]} 23. Bg2 {[%clk 0:00:57.7]} 23... Kh7 {[%clk
0:00:44.2]} 24. Be4+ {[%clk 0:00:53.6]} 24... g6 {[%clk 0:00:27.8]} 25. Qf3
{[%clk 0:00:52.9]} 25... Nd5 {[%clk 0:00:25.1]} 26. h5 {[%clk 0:00:50.3]} 26...
Kg7 {[%clk 0:00:25.5]} 27. hxg6 {[%clk 0:00:48.4]} 27... fxg6 {[%clk 0:00:27.4]}
28. Kg2 {[%clk 0:00:46.3]} 28... Qe8 {[%clk 0:00:26.8]} 29. Rh1 {[%clk
0:00:42.7]} 29... Rd8 {[%clk 0:00:22.3]} 30. Rxa6 {[%clk 0:00:41.3]} 30... Bxe5
{[%clk 0:00:23.1]} 31. Ra7+ {[%clk 0:00:40.5]} 31... Rd7 {[%clk 0:00:24]} 32.
Rha1 {[%clk 0:00:32.7]} 32... Ne3+ {[%clk 0:00:19.3]} 33. Bxe3 {[%clk
0:00:32.5]} 33... dxe3 {[%clk 0:00:20.5]} 34. Bxc6 {[%clk 0:00:32.7]} 34... Bxa1
{[%clk 0:00:18.1]} 35. Bxd7 {[%clk 0:00:31.5]} 35... Qb8 {[%clk 0:00:15.5]} 36.
Rb7 {[%clk 0:00:28.3]} 36... Qd6 {[%clk 0:00:15.8]} 37. Qxe3 {[%clk 0:00:22.7]}
37... Rf7 {[%clk 0:00:16.4]} 38. Qe8 {[%clk 0:00:16.8]} 38... Bd4 {[%clk
0:00:15.4]} 39. Rb8 {[%clk 0:00:12]} 39... Qd5+ {[%clk 0:00:16.3]} 40. Kh2
{[%clk 0:00:11]} 40... Kf6 {[%clk 0:00:11.7]} 41. Qh8+ {[%clk 0:00:10.3]} 41...
Ke7 {[%clk 0:00:12.2]} 42. Qd8+ {[%clk 0:00:09.9]} 42... Kd6 {[%clk 0:00:05.8]}
43. Be8+ {[%clk 0:00:08.2]} 43... Ke6 {[%clk 0:00:04.9]} 44. Bxf7+ {[%clk
0:00:04.5]} 44... Kxf7 {[%clk 0:00:05.3]} 45. Qxd5+ {[%clk 0:00:06.4]} 45... Kf6
{[%clk 0:00:05.3]} 46. Rb7 {[%clk 0:00:06.8]} 1-0

[Event "*** MasterClass Titled Tuesday Blitz"]
[Site "Chess.com"]
[Date "2017.07.04"]
[Round "9"]
[White "kleinebeer98"]
[Black "Blitzstream"]
[Result "1-0"]
[WhiteElo "2459"]
[BlackElo "2442"]
[TimeControl "180+2"]
[EndTime "15:07:38 PDT"]
[Termination "kleinebeer98 won by resignation"]

1. e4 {[%clk 0:03:01.9]} 1... e5 {[%clk 0:02:59.6]} 2. Qh5 {[%clk 0:03:01.7]}
2... Nc6 {[%clk 0:02:57.6]} 3. Bc4 {[%clk 0:03:02.5]} 3... g6 {[%clk 0:02:57.6]}
4. Qf3 {[%clk 0:03:03.8]} 4... Nf6 {[%clk 0:02:58.5]} 5. Ne2 {[%clk 0:03:04.3]}
5... Bg7 {[%clk 0:02:59.3]} 6. Nbc3 {[%clk 0:03:05.3]} 6... O-O {[%clk
0:03:00.3]} 7. d3 {[%clk 0:03:05.7]} 7... d6 {[%clk 0:02:54]} 8. h3 {[%clk
0:03:06.5]} 8... Be6 {[%clk 0:02:53.1]} 9. Bg5 {[%clk 0:03:04.8]} 9... h6 {[%clk
0:02:52.8]} 10. Be3 {[%clk 0:02:54.4]} 10... Kh7 {[%clk 0:02:43.1]} 11. O-O-O
{[%clk 0:02:50.4]} 11... b5 {[%clk 0:02:40.2]} 12. Bxb5 {[%clk 0:02:44.3]} 12...
Ne7 {[%clk 0:02:21.3]} 13. g4 {[%clk 0:02:42.5]} 13... c6 {[%clk 0:02:17.7]} 14.
Ba4 {[%clk 0:02:40.9]} 14... d5 {[%clk 0:02:18.3]} 15. d4 {[%clk 0:02:35.3]}
15... dxe4 {[%clk 0:02:15.7]} 16. Qg3 {[%clk 0:02:31.4]} 16... Qa5 {[%clk
0:02:09.6]} 17. g5 {[%clk 0:02:18.5]} 17... Nfd5 {[%clk 0:02:07.6]} 18. gxh6
{[%clk 0:02:17.3]} 18... Bh8 {[%clk 0:01:39]} 19. Nxe4 {[%clk 0:02:14.6]} 19...
Qxa4 {[%clk 0:01:12]} 20. Ng5+ {[%clk 0:02:14.3]} 20... Kg8 {[%clk 0:01:12.7]}
21. h7+ {[%clk 0:02:11]} 21... Kg7 {[%clk 0:01:13.7]} 22. Qxe5+ {[%clk
0:02:07.4]} 22... f6 {[%clk 0:01:10.4]} 23. Nxe6+ {[%clk 0:02:07.2]} 23... Kf7
{[%clk 0:01:08]} 24. Nc5 {[%clk 0:01:32.3]} 24... Qxa2 {[%clk 0:00:42.4]} 25.
Qe6+ {[%clk 0:01:29.3]} 25... Kg7 {[%clk 0:00:43.5]} 26. Nf4 {[%clk 0:01:23.8]}
26... Rae8 {[%clk 0:00:28.1]} 27. Rhg1 {[%clk 0:01:18.4]} 27... Nxf4 {[%clk
0:00:27.7]} 28. Qxa2 {[%clk 0:01:18.5]} 28... Ne2+ {[%clk 0:00:22.9]} 29. Kb1
{[%clk 0:01:18.9]} 29... Nxg1 {[%clk 0:00:24.8]} 30. Rxg1 {[%clk 0:01:20.8]}
30... Nd5 {[%clk 0:00:26.4]} 31. Qxa7+ {[%clk 0:01:19.5]} 31... Re7 {[%clk
0:00:26.6]} 32. Bh6+ {[%clk 0:01:20.6]} 32... Kxh6 {[%clk 0:00:26.5]} 33. Qa6
{[%clk 0:01:15.7]} 33... Rb8 {[%clk 0:00:22.3]} 34. Kc1 {[%clk 0:01:08.4]} 34...
Nb4 {[%clk 0:00:20.4]} 35. Qa3 {[%clk 0:01:02.4]} 35... Re2 {[%clk 0:00:19.5]}
36. Nd3 {[%clk 0:00:51.3]} 36... Rxc2+ {[%clk 0:00:16.4]} 37. Kd1 {[%clk
0:00:52.3]} 37... Rc4 {[%clk 0:00:14.1]} 38. Rg4 {[%clk 0:00:20.1]} 38... f5
{[%clk 0:00:10.8]} 39. Rh4+ {[%clk 0:00:16.3]} 39... Kg5 {[%clk 0:00:11.9]} 40.
Ne5 {[%clk 0:00:15.9]} 40... Bxe5 {[%clk 0:00:09.8]} 41. dxe5 {[%clk 0:00:16.5]}
41... Rxh4 {[%clk 0:00:10.7]} 42. Qg3+ {[%clk 0:00:16.1]} 42... Kh5 {[%clk
0:00:10.3]} 43. f4 {[%clk 0:00:16.3]} 43... Rd8+ {[%clk 0:00:02.7]} 44. Ke2
{[%clk 0:00:10.6]} 44... Rg4 {[%clk 0:00:02.3]} 45. hxg4+ {[%clk 0:00:10.8]}
45... Kh6 {[%clk 0:00:04.2]} 46. Qh2+ {[%clk 0:00:12.2]} 46... Kg7 {[%clk
0:00:05.3]} 47. gxf5 {[%clk 0:00:12.8]} 47... gxf5 {[%clk 0:00:07.2]} 48. Qg3+
{[%clk 0:00:11.5]} 48... Kxh7 {[%clk 0:00:08]} 49. Qh4+ {[%clk 0:00:12.4]} 49...
Kg6 {[%clk 0:00:09.9]} 50. Qxd8 {[%clk 0:00:13.5]} 50... Nd5 {[%clk 0:00:11.8]}
51. Qg5+ {[%clk 0:00:13.5]} 51... Kf7 {[%clk 0:00:12.1]} 52. Qxf5+ {[%clk
0:00:15.4]} 52... Ke7 {[%clk 0:00:14]} 53. e6 {[%clk 0:00:15.2]} 53... Nc7
{[%clk 0:00:14.3]} 54. Qf7+ {[%clk 0:00:15.1]} 54... Kd6 {[%clk 0:00:16.2]} 55.
Qd7+ {[%clk 0:00:17]} 1-0

[Event "*** MasterClass Titled Tuesday Blitz"]
[Site "Chess.com"]
[Date "2017.07.04"]
[Round "9"]
[White "Adham_Fawzy"]
[Black "viggi38"]
[Result "1-0"]
[WhiteElo "2431"]
[BlackElo "2255"]
[TimeControl "180+2"]
[EndTime "15:07:50 PDT"]
[Termination "Adham_Fawzy won by resignation"]

1. e4 {[%clk 0:03:00]} 1... d5 {[%clk 0:03:00.1]} 2. exd5 {[%clk 0:03:00.7]}
2... Qxd5 {[%clk 0:03:02]} 3. Nc3 {[%clk 0:03:01.7]} 3... Qd6 {[%clk 0:03:02.2]}
4. g3 {[%clk 0:03:02.9]} 4... c6 {[%clk 0:03:01.3]} 5. Bg2 {[%clk 0:03:04.1]}
5... Nf6 {[%clk 0:02:56.9]} 6. Nge2 {[%clk 0:03:05.2]} 6... Bf5 {[%clk
0:02:55.5]} 7. O-O {[%clk 0:03:03.2]} 7... e6 {[%clk 0:02:56.2]} 8. d3 {[%clk
0:03:04]} 8... Qc7 {[%clk 0:02:55.7]} 9. h3 {[%clk 0:03:04.5]} 9... Nbd7 {[%clk
0:02:55.1]} 10. Rb1 {[%clk 0:02:59.8]} 10... a5 {[%clk 0:02:52.7]} 11. a3 {[%clk
0:02:58.9]} 11... a4 {[%clk 0:02:46.4]} 12. g4 {[%clk 0:02:54]} 12... Bg6 {[%clk
0:02:46.4]} 13. f4 {[%clk 0:02:55.2]} 13... Bd6 {[%clk 0:02:30.8]} 14. Ng3
{[%clk 0:02:46.3]} 14... h5 {[%clk 0:01:58.6]} 15. g5 {[%clk 0:02:40.3]} 15...
Nd5 {[%clk 0:01:54.6]} 16. Nce2 {[%clk 0:02:18.1]} 16... Qb6+ {[%clk 0:01:39.8]}
17. Kh1 {[%clk 0:02:18]} 17... h4 {[%clk 0:01:01.6]} 18. Ne4 {[%clk 0:02:17.3]}
18... Be7 {[%clk 0:00:59.6]} 19. b3 {[%clk 0:02:00.8]} 19... Ne3 {[%clk
0:00:54.9]} 20. Bxe3 {[%clk 0:01:57.5]} 20... Qxe3 {[%clk 0:00:56.8]} 21. bxa4
{[%clk 0:01:58.6]} 21... Qa7 {[%clk 0:00:44.5]} 22. Qd2 {[%clk 0:01:57.9]} 22...
Nc5 {[%clk 0:00:36.1]} 23. N2c3 {[%clk 0:01:51]} 23... Kf8 {[%clk 0:00:33.4]}
24. Bf3 {[%clk 0:01:38.1]} 24... Qa5 {[%clk 0:00:26.7]} 25. Qe2 {[%clk
0:01:29.4]} 25... Nxa4 {[%clk 0:00:16.8]} 26. Nxa4 {[%clk 0:01:26.2]} 26... Qxa4
{[%clk 0:00:18.7]} 27. Rxb7 {[%clk 0:01:27.6]} 27... Bxa3 {[%clk 0:00:19]} 28.
Bg4 {[%clk 0:01:24.5]} 28... Qd4 {[%clk 0:00:18.8]} 29. f5 {[%clk 0:01:17.2]}
29... exf5 {[%clk 0:00:19.6]} 30. Bxf5 {[%clk 0:01:18.1]} 30... Bh5 {[%clk
0:00:20.5]} 31. Bg4 {[%clk 0:01:10.1]} 31... Bg6 {[%clk 0:00:17]} 32. Be6 {[%clk
0:01:08.7]} 32... Ra7 {[%clk 0:00:10.6]} 33. Rxa7 {[%clk 0:00:45.1]} 33... Qxa7
{[%clk 0:00:10.7]} 34. Bxf7 {[%clk 0:00:45.3]} 34... Bxf7 {[%clk 0:00:12.6]} 35.
g6 {[%clk 0:00:45.8]} 35... Qb8 {[%clk 0:00:06.1]} 36. Rxf7+ {[%clk 0:00:45.9]}
36... Kg8 {[%clk 0:00:07]} 37. Qg4 {[%clk 0:00:21]} 37... Rh6 {[%clk 0:00:06.8]}
38. Qe6 {[%clk 0:00:19.8]} 38... Kh8 {[%clk 0:00:05.5]} 39. Kg2 {[%clk
0:00:19.7]} 39... Bb4 {[%clk 0:00:03.8]} 40. Kf3 {[%clk 0:00:16.4]} 40... Qg8
{[%clk 0:00:04.6]} 41. Kg4 {[%clk 0:00:16.6]} 41... c5 {[%clk 0:00:04.7]} 42.
Ng5 {[%clk 0:00:17.6]} 42... c4 {[%clk 0:00:03.4]} 43. Qxc4 {[%clk 0:00:17.4]}
43... Bd2 {[%clk 0:00:03.6]} 44. Rf8 {[%clk 0:00:16.1]} 44... Qxf8 {[%clk
0:00:02.3]} 45. Nf7+ {[%clk 0:00:16.9]} 45... Qxf7 {[%clk 0:00:03.4]} 46. gxf7
{[%clk 0:00:17.6]} 46... Rf6 {[%clk 0:00:04.2]} 47. Qc8+ {[%clk 0:00:18.3]}
47... Kh7 {[%clk 0:00:05.1]} 48. Qe8 {[%clk 0:00:18]} 1-0